bitfinex/quotes_BTCUSD_20250406
["timestamp","ask_amount","ask_price","bid_price","bid_amount"]
[1743965581278,0.28,78816.0,78803.0,0.12416095]
[1743965581502,0.28,78816.0,78806.0,0.012689]
[1743965581845,0.012688,78812.0,78807.0,0.12290297]
[1743965582052,0.012689,78808.0,78807.0,0.0047518]
[1743965582190,0.41559197,78808.0,78807.0,0.0047518]
[1743965582390,0.2665,78799.0,78798.0,0.005]
[1743965582592,0.5465,78799.0,78798.0,0.005]
[1743965583034,0.66940297,78799.0,78798.0,0.005]
[1743965583247,0.01269,78797.0,78774.0,0.012694]
[1743965583439,0.01269,78797.0,78771.0,0.012795]
[1743965583440,0.27,78797.0,78796.0,0.01269]
[1743965583760,0.01,78797.0,78796.0,0.12290297]
[1743965583972,0.01,78797.0,78780.0,0.26840885]
[1743965584179,0.01,78797.0,78786.0,0.12290297]
[1743965584391,0.266509,78796.0,78786.0,0.12290297]
[1743965584595,0.266509,78796.0,78785.0,0.0002366]
[1743965584596,0.012692,78786.0,78785.0,0.0002366]
[1743965584807,0.012689,78804.0,78785.0,0.0002366]
[1743965585016,0.27,78804.0,78786.0,0.012692]
[1743965585252,0.27,78804.0,78797.0,0.01269]
[1743965585458,0.27,78804.0,78803.0,0.266486]
[1743965585657,0.27,78804.0,78803.0,0.38938897]
[1743965585834,0.012685,78828.0,78807.0,0.26647]
[1743965586036,0.012685,78828.0,78818.0,0.253746]
[1743965586037,0.25,78828.0,78818.0,0.253746]
[1743965586242,0.25,78828.0,78820.0,0.01454085]
[1743965586440,0.25,78828.0,78821.0,0.12290297]
[1743965586691,0.012686,78825.0,78808.0,0.253781]
[1743965586891,0.012686,78825.0,78807.0,0.012689]
[1743965586892,0.04,78825.0,78813.0,0.01454085]
[1743965587097,0.04,78825.0,78824.0,0.253729]
[1743965587295,0.04,78825.0,78824.0,0.12290297]
[1743965587649,0.04,78825.0,78821.0,0.006]
[1743965587849,0.0401369,78825.0,78815.0,0.012687]
[1743965588110,0.0401369,78825.0,78816.0,0.12544023]
[1743965588279,0.012686,78822.0,78813.0,0.0061]
[1743965588467,0.266425,78821.0,78814.0,0.12290297]
[1743965588725,0.012687,78818.0,78814.0,0.12290297]
[1743965588890,0.05,78818.0,78814.0,0.12290297]
[1743965589241,0.05,78818.0,78817.0,0.02722785]
[1743965589412,0.05,78818.0,78817.0,0.15013082]
[1743965589789,0.0001369,78825.0,78817.0,0.12290297]
[1743965589976,0.0101369,78825.0,78824.0,0.01454085]
[1743965590168,0.0101369,78825.0,78824.0,0.17471641]
[1743965590574,0.0228229,78825.0,78824.0,0.16017556]
[1743965590823,0.266445,78815.0,78814.0,0.03727259]
[1743965591000,0.012688,78814.0,78813.0,0.0001]
[1743965591210,0.092688,78814.0,78813.0,0.0001]
[1743965591787,0.08,78814.0,78813.0,0.0001]
[1743965592360,0.34645,78814.0,78813.0,0.0061]
[1743965593309,0.34645,78814.0,78813.0,0.0121]
[1743965593668,0.34645,78814.0,78813.0,0.0061]
[1743965594057,0.34645,78814.0,78813.0,0.0121]
[1743965594266,0.266544,78786.0,78785.0,0.0002]
[1743965594408,0.336544,78786.0,78785.0,0.0002]
[1743965594821,0.07,78786.0,78785.0,0.0002]
[1743965595448,0.07,78786.0,78785.0,0.39564997]
[1743965595824,0.07,78786.0,78785.0,0.41032742]
[1743965596007,0.07,78786.0,78785.0,0.39578657]
[1743965596208,0.07,78786.0,78785.0,0.41032742]
[1743965596421,0.07,78786.0,78785.0,0.41632742]
[1743965596617,0.07,78786.0,78785.0,0.41032742]
[1743965596859,0.07,78786.0,78785.0,0.40432742]
[1743965597067,0.07,78786.0,78785.0,0.44760001]
[1743965597259,0.07,78786.0,78785.0,0.44770001]
[1743965597468,0.07,78786.0,78785.0,0.78770001]
[1743965597671,0.266389,78832.0,78812.0,0.012688]
[1743965597891,0.2822,78831.0,78819.0,0.012687]
[1743965598082,0.2822,78831.0,78820.0,0.79750908]
[1743965598283,0.2822,78831.0,78822.0,0.012686]
[1743965598454,0.2807,78831.0,78830.0,0.012685]
[1743965598655,0.2807,78831.0,78830.0,0.12290297]
[1743965599216,0.28083693,78831.0,78830.0,0.40383882]
[1743965599861,0.10807572,78845.0,78844.0,0.266348]
[1743965600068,0.10807572,78845.0,78844.0,0.44106441]
[1743965600260,0.10807572,78845.0,78844.0,0.88103631]
[1743965600505,0.10807572,78845.0,78844.0,0.92823631]
[1743965600712,0.00210069,78878.0,78850.0,0.62086885]
[1743965600913,0.00210069,78878.0,78850.0,0.84374372]
[1743965601528,0.00210069,78878.0,78856.0,0.606307]
[1743965601782,0.00079039,78857.0,78856.0,1.97715531]
[1743965601982,3.9e-07,78857.0,78856.0,1.97715531]
[1743965602157,0.0003346,78893.0,78892.0,0.266186]
[1743965602363,0.0103346,78893.0,78892.0,0.17471641]
[1743965602573,0.0104716,78893.0,78892.0,0.26014746]
[1743965602926,0.0104716,78893.0,78892.0,0.27282246]
[1743965603121,0.0104716,78893.0,78892.0,0.26014746]
[1743965603324,0.0114716,78893.0,78892.0,0.22287487]
[1743965603529,0.0114716,78893.0,78892.0,0.26024746]
[1743965603729,0.0114716,78893.0,78892.0,0.28746331]
[1743965603730,0.0104716,78893.0,78892.0,0.28746331]
[1743965604060,0.3,78893.0,78892.0,0.28078831]
[1743965604252,0.03,78893.0,78892.0,0.26624746]
[1743965604455,0.03,78893.0,78892.0,0.22897487]
[1743965604656,0.03,78893.0,78892.0,0.23497487]
[1743965604926,0.03,78893.0,78892.0,0.28492246]
[1743965605251,0.03,78893.0,78892.0,0.26624746]
[1743965605468,0.03,78893.0,78892.0,0.22897487]
[1743965605931,0.03,78893.0,78892.0,0.1120719]
[1743965606328,0.03,78893.0,78892.0,0.24764987]
[1743965606558,0.03,78893.0,78892.0,0.50116087]
[1743965607089,0.03,78893.0,78892.0,0.51570172]
[1743965607656,0.03,78893.0,78892.0,0.85570172]
[1743965607839,0.0003344,78919.0,78909.0,0.266128]
[1743965608139,0.100335,78910.0,78909.0,0.45326771]
[1743965608343,0.0003344,78919.0,78909.0,0.45326771]
[1743965608344,0.0003344,78919.0,78918.0,0.266098]
[1743965608552,0.08047127,78919.0,78918.0,0.77869686]
[1743965608755,0.08047127,78919.0,78918.0,0.79323771]
[1743965608952,0.08047127,78919.0,78918.0,0.89320961]
[1743965610011,0.00047127,78919.0,78918.0,0.89320961]
[1743965610162,0.00047127,78919.0,78918.0,0.89920961]
[1743965610365,0.00012725,78962.0,78935.0,0.266041]
[1743965610587,0.07079073,78936.0,78935.0,0.45318071]
[1743965610752,0.07079073,78936.0,78935.0,0.55315261]
[1743965610965,0.07079073,78936.0,78935.0,0.29977961]
[1743965611376,0.07079073,78936.0,78935.0,0.27257076]
[1743965611836,0.07079073,78936.0,78935.0,0.28711161]
[1743965612012,0.07079073,78936.0,78935.0,0.29977961]
[1743965612544,0.07079073,78936.0,78935.0,0.30577961]
[1743965612700,0.07079073,78936.0,78935.0,0.29977961]
[1743965612896,0.07079073,78936.0,78935.0,0.27257076]
[1743965613139,0.07079073,78936.0,78935.0,0.27857076]
[1743965613291,0.07079073,78936.0,78935.0,0.28523876]
[1743965613487,0.07079073,78936.0,78935.0,0.27857076]
[1743965613682,0.07079073,78936.0,78935.0,0.23487487]
[1743965613951,0.07079073,78936.0,78935.0,0.24154287]
[1743965614377,0.07079073,78936.0,78935.0,0.24754287]
[1743965614570,0.07079073,78936.0,78935.0,0.26208372]
[1743965615182,0.07079073,78936.0,78935.0,0.1119719]
[1743965615468,0.07079073,78936.0,78935.0,0.23487487]
[1743965615838,0.08345873,78936.0,78935.0,0.1119719]
[1743965616040,0.07079073,78936.0,78935.0,0.012]
[1743965616728,0.07079073,78936.0,78935.0,0.006]
[1743965617646,0.07079073,78936.0,78925.0,0.253405]
[1743965617861,0.07079073,78936.0,78933.0,0.253378]
[1743965618103,0.07079073,78936.0,78935.0,0.012668]
[1743965618328,0.07079073,78936.0,78935.0,0.13557097]
[1743965618564,0.07079073,78936.0,78935.0,0.12290297]
[1743965618793,0.07079073,78936.0,78935.0,0.38227597]
[1743965619001,0.07079073,78936.0,78935.0,0.39494397]
[1743965619227,0.07079073,78936.0,78935.0,0.38894397]
[1743965619668,0.07079073,78936.0,78935.0,0.41548482]
[1743965619885,0.07079073,78936.0,78935.0,0.40948482]
[1743965620125,0.07079073,78936.0,78935.0,0.74948482]
[1743965620355,0.0003334,78968.0,78935.0,0.74948482]
[1743965620356,0.0003334,78968.0,78950.0,0.28053085]
[1743965620585,0.2403338,78951.0,78950.0,0.45312971]
[1743965620811,0.24047058,78951.0,78950.0,0.45312971]
[1743965621512,5.8e-07,78951.0,78950.0,0.79312971]
[1743965621734,5.8e-07,78951.0,78950.0,1.2184842]
[1743965622399,5.8e-07,78951.0,78950.0,1.24174306]
[1743965622981,5.8e-07,78951.0,78950.0,1.24774306]
[1743965623388,5.8e-07,78951.0,78950.0,1.25384306]
[1743965623592,5.8e-07,78951.0,78950.0,1.2305842]
[1743965624004,0.01000058,78951.0,78950.0,1.2305842]
[1743965624207,0.01000058,78951.0,78950.0,1.22723417]
[1743965624413,0.01000058,78951.0,78950.0,0.62114883]
[1743965624664,5.8e-07,78951.0,78950.0,0.47393883]
[1743965624861,2.635e-05,78968.0,78967.0,0.265933]
[1743965625062,0.19002635,78968.0,78967.0,0.40337682]
[1743965626263,0.19002635,78968.0,78967.0,0.38883597]
[1743965626786,0.19002635,78968.0,78967.0,0.12300297]
[1743965627124,0.19002635,78968.0,78967.0,0.37627297]
[1743965627331,0.19002635,78968.0,78967.0,0.12300297]
[1743965627687,0.19002635,78968.0,78967.0,0.0001]
[1743965628098,0.20268935,78968.0,78967.0,0.0001]
[1743965628299,0.23552635,78968.0,78967.0,0.0001]
[1743965628746,0.19002635,78968.0,78967.0,0.0001]
[1743965629150,0.19002635,78968.0,78967.0,0.13566597]
[1743965629354,0.19002635,78968.0,78967.0,0.12300297]
[1743965629526,0.19002635,78968.0,78967.0,0.13566597]
[1743965629931,0.19002635,78968.0,78967.0,0.12310297]
[1743965630135,0.19002635,78968.0,78967.0,0.0002]
[1743965630332,0.19002635,78968.0,78967.0,0.02348672]
[1743965630556,0.19002635,78968.0,78967.0,0.0002]
[1743965630761,0.19002635,78968.0,78967.0,0.38903597]
[1743965630889,0.19002635,78968.0,78967.0,0.40357682]
[1743965631289,0.19002635,78968.0,78967.0,0.42686354]
[1743965631490,0.18850969,78968.0,78967.0,0.42686354]
[1743965631696,0.18850969,78968.0,78967.0,0.47655943]
[1743965631966,0.18701938,78968.0,78967.0,0.47655943]
[1743965632365,0.18701938,78968.0,78967.0,0.42686354]
[1743965632984,0.18701938,78968.0,78967.0,0.16093054]
[1743965633184,0.18701938,78968.0,78967.0,0.02348672]
[1743965633959,0.19968238,78968.0,78967.0,0.02348672]
[1743965634309,0.18701938,78968.0,78967.0,0.0002]
[1743965634725,0.19968238,78968.0,78967.0,0.0002]
[1743965634939,0.2091132,78968.0,78967.0,0.0002]
[1743965635145,0.1964502,78968.0,78967.0,0.0003]
[1743965635351,0.18701938,78968.0,78967.0,0.0003]
[1743965635556,0.18701938,78968.0,78967.0,0.012963]
[1743965635684,0.18701938,78968.0,78967.0,0.13774382]
[1743965635904,0.18701938,78968.0,78967.0,0.4272252]
[1743965637010,0.18701938,78968.0,78967.0,0.02384838]
[1743965637213,0.18701938,78968.0,78967.0,0.03651138]
[1743965637415,0.18701938,78968.0,78967.0,0.15941435]
[1743965637684,0.18701938,78968.0,78967.0,0.1739552]
[1743965638204,0.18701938,78968.0,78967.0,0.5139552]
[1743965639002,0.18701938,78968.0,78967.0,0.5199552]
[1743965639407,0.18701938,78968.0,78967.0,0.5139552]
[1743965639684,0.18701938,78968.0,78967.0,0.5199552]
[1743965640082,0.18701938,78968.0,78967.0,0.8231152]
[1743965640305,0.18701938,78968.0,78967.0,0.8291152]
[1743965640672,0.18701938,78968.0,78967.0,0.4831152]
[1743965640845,0.18701938,78968.0,78967.0,0.15875135]
[1743965641048,0.18701938,78968.0,78967.0,0.02984838]
[1743965641254,0.18701938,78968.0,78967.0,0.03584838]
[1743965641468,0.19968238,78968.0,78967.0,0.03584838]
[1743965641668,0.45294938,78968.0,78967.0,0.02984838]
[1743965641914,0.18701938,78968.0,78967.0,0.02984838]
[1743965642059,0.19968238,78968.0,78967.0,0.02384838]
[1743965642259,0.19968238,78968.0,78937.0,0.04969589]
[1743965642260,0.265987,78951.0,78937.0,0.04969589]
[1743965642458,0.525987,78951.0,78921.0,0.04969589]
[1743965642721,0.64888997,78951.0,78921.0,0.04969589]
[1743965643006,0.315237,78936.0,78910.0,0.67206903]
[1743965643217,0.012673,78906.0,78896.0,0.01220181]
[1743965643483,0.012673,78906.0,78896.0,0.12290297]
[1743965643484,0.012674,78901.0,78896.0,0.12290297]
[1743965643702,0.253497,78897.0,78894.0,0.0999719]
[1743965643954,0.253497,78897.0,78896.0,0.00045613]
[1743965643955,0.23,78897.0,78896.0,0.00045613]
[1743965644337,0.23,78897.0,78896.0,0.01313013]
[1743965644537,0.23,78897.0,78896.0,0.1360331]
[1743965644781,0.23,78897.0,78896.0,0.15057395]
[1743965645380,0.23,78897.0,78896.0,0.1233591]
[1743965645622,0.23,78897.0,78896.0,0.01313013]
[1743965645843,0.23,78897.0,78896.0,0.00045613]
[1743965646112,0.23,78897.0,78896.0,0.4015311]
[1743965646311,0.23,78897.0,78896.0,0.41607195]
[1743965646644,0.0478,78937.0,78896.0,0.41607195]
[1743965646645,0.253427,78919.0,78902.0,0.012673]
[1743965646879,0.24,78919.0,78918.0,0.012671]
[1743965647195,0.24,78919.0,78918.0,0.12290297]
[1743965647671,0.24,78919.0,78910.0,0.01454085]
[1743965647886,0.253476,78903.0,78896.0,0.01245613]
[1743965648085,0.08,78903.0,78896.0,0.01245613]
[1743965648290,0.08,78903.0,78896.0,0.01313013]
[1743965648489,0.08,78903.0,78902.0,0.012673]
[1743965648720,0.08,78903.0,78902.0,0.018673]
[1743965648938,0.08,78903.0,78902.0,0.15011682]
[1743965649147,0.08,78903.0,78902.0,0.12290297]
[1743965649351,0.08,78903.0,78902.0,0.15011682]
[1743965649755,0.012666,78947.0,78934.0,0.012668]
[1743965649956,0.21,78947.0,78935.0,0.38894397]
[1743965650362,0.21,78947.0,78941.0,0.253353]
[1743965650493,0.21,78947.0,78944.0,0.02720785]
[1743965650695,0.21,78947.0,78946.0,0.74344682]
[1743965650929,0.0001673,78983.0,78971.0,0.012662]
[1743965651165,0.2801673,78983.0,78981.0,0.253225]
[1743965651351,0.2801673,78983.0,78979.0,0.253231]
[1743965651553,0.28030406,78983.0,78974.0,0.26778785]
[1743965651729,0.012661,78978.0,78963.0,0.012664]
[1743965652097,0.012661,78978.0,78962.0,0.308664]
[1743965652098,0.28,78978.0,78975.0,0.253242]
[1743965652307,0.28,78978.0,78977.0,0.28043985]
[1743965652516,0.28,78978.0,78977.0,0.15010482]
[1743965653533,0.28,78978.0,78977.0,0.492637]
[1743965653749,0.28,78978.0,78977.0,0.49010482]
[1743965653969,0.28,78978.0,78977.0,0.13744382]
[1743965654165,0.28,78978.0,78977.0,0.15010482]
[1743965654761,0.28,78978.0,78977.0,0.15610482]
[1743965655238,0.2771,78978.0,78977.0,0.15010482]
[1743965655449,0.00030406,78983.0,78982.0,0.02720185]
[1743965655652,0.00030406,78983.0,78982.0,0.74585829]
[1743965655780,0.00030406,78983.0,78982.0,0.74332682]
[1743965656697,0.00030406,78983.0,78982.0,1.17998136]
[1743965656834,0.00030406,78983.0,78982.0,1.19170863]
[1743965657054,0.0003342,78992.0,78987.0,0.635866]
[1743965657281,0.0003342,78992.0,78987.0,1.52980571]
[1743965657507,0.0003342,78992.0,78987.0,1.65323215]
[1743965657731,0.0003342,78992.0,78991.0,0.605852]
[1743965657955,0.0003342,78992.0,78991.0,0.78396598]
[1743965658185,0.0001342,78992.0,78991.0,0.87920984]
[1743965658644,0.0001342,78992.0,78991.0,0.89093711]
[1743965658926,0.0001342,78992.0,78991.0,0.52778798]
[1743965659167,0.0201342,78992.0,78991.0,0.92164326]
[1743965659362,0.0201342,78992.0,78991.0,0.90391599]
[1743965659855,0.0201342,78992.0,78991.0,0.91845684]
[1743965660064,0.0001342,78992.0,78991.0,0.91845684]
[1743965660688,0.0001342,78992.0,78991.0,0.92445684]
[1743965660896,0.0001342,78992.0,78991.0,1.34365684]
[1743965661106,0.0001342,78992.0,78991.0,1.34235703]
[1743965661295,0.0001342,78992.0,78991.0,1.35235703]
[1743965661448,0.0001342,78992.0,78991.0,1.36435703]
[1743965661622,0.0001342,78992.0,78991.0,1.34981618]
[1743965662051,0.0001342,78992.0,78991.0,1.36435703]
[1743965662469,0.0003348,78995.0,78994.0,0.037659]
[1743965662698,0.0001672,79010.0,78999.0,0.03219885]
[1743965662699,0.00181409,79000.0,78999.0,0.03219885]
[1743965662940,0.0001672,79010.0,79009.0,0.02719685]
[1743965663103,0.12030391,79010.0,79009.0,0.46541829]
[1743965663560,0.12030391,79010.0,79009.0,0.19962729]
[1743965663810,0.12030391,79010.0,79009.0,0.17338594]
[1743965664016,0.13295991,79010.0,79009.0,0.03594212]
[1743965664229,0.12030391,79010.0,79009.0,0.14139055]
[1743965664371,0.12030391,79010.0,79009.0,0.14739055]
[1743965664571,0.12030391,79010.0,79009.0,0.14139055]
[1743965664825,0.12030391,79010.0,79009.0,0.14149055]
[1743965665234,0.11295991,79010.0,79009.0,0.02458758]
[1743965665392,0.10030391,79010.0,79009.0,0.02458758]
[1743965665791,0.10030391,79010.0,79009.0,0.22438329]
[1743965666108,0.10030391,79010.0,79009.0,0.56438329]
[1743965666307,0.10030391,79010.0,79009.0,0.55838329]
[1743965666721,0.38030391,79010.0,79009.0,0.56438329]
[1743965666932,0.10030391,79010.0,79009.0,0.57635453]
[1743965667725,0.10030391,79010.0,79009.0,0.59990907]
[1743965667953,0.09750449,79010.0,79009.0,0.59990907]
[1743965668628,0.0003346,79015.0,79014.0,0.012655]
[1743965668852,0.1307902,79015.0,79014.0,0.74321782]
[1743965669527,0.0107902,79015.0,79014.0,0.51257232]
[1743965669763,0.0036902,79015.0,79014.0,0.16177278]
[1743965669976,0.0036902,79015.0,79014.0,0.17030343]
[1743965670200,0.0036902,79015.0,79014.0,0.19122732]
[1743965670437,0.0036902,79015.0,79014.0,0.18522732]
[1743965670697,0.0036902,79015.0,79014.0,0.16089836]
[1743965670940,0.0036902,79015.0,79014.0,0.12290297]
[1743965671175,0.0036902,79015.0,79014.0,0.1526296]
[1743965671409,0.0036902,79015.0,79014.0,0.1587296]
[1743965671610,0.0036902,79015.0,79014.0,0.15619882]
[1743965672128,0.2568062,79015.0,79014.0,0.12900297]
[1743965672383,0.2694612,79015.0,79014.0,0.0061]
[1743965672638,0.2694612,79015.0,79014.0,0.0001]
[1743965672886,0.0036902,79015.0,79014.0,0.15619882]
[1743965673373,0.0033902,79015.0,79014.0,0.15019882]
[1743965673574,0.0033902,79015.0,79014.0,0.13754382]
[1743965673782,0.0033902,79015.0,79014.0,0.14354382]
[1743965674213,0.0033902,79015.0,79014.0,0.13754382]
[1743965674392,0.0033902,79015.0,79014.0,0.14354382]
[1743965674597,0.2565062,79015.0,79014.0,0.12900297]
[1743965674799,0.2691612,79015.0,79014.0,0.0061]
[1743965675346,0.2691612,79015.0,79009.0,0.01268758]
[1743965675347,0.265788,79010.0,79009.0,0.01268758]
[1743965675575,0.561288,79010.0,79009.0,0.01268758]
[1743965675784,0.265835,78996.0,78995.0,0.02345454]
[1743965675982,0.265849,78992.0,78991.0,0.0101]
[1743965676178,0.555849,78992.0,78991.0,0.0101]
[1743965676380,0.29,78992.0,78991.0,0.0101]
[1743965676651,0.29,78992.0,78991.0,0.14566197]
[1743965676855,0.29,78992.0,78991.0,0.13300297]
[1743965677066,0.29,78992.0,78991.0,0.16020282]
[1743965677467,0.29,78992.0,78991.0,0.18365736]
[1743965677874,0.29,78992.0,78991.0,0.18965736]
[1743965678106,0.29,78992.0,78991.0,0.2013523]
[1743965678713,0.29,78992.0,78991.0,0.3013242]
[1743965678921,0.29,78992.0,78991.0,0.2953242]
[1743965679339,0.291,78992.0,78991.0,0.2866652]
[1743965679514,0.291,78992.0,78991.0,0.2994242]
[1743965679745,0.55,78992.0,78991.0,0.2954242]
[1743965679948,0.29,78992.0,78991.0,0.2827652]
[1743965680161,0.29,78992.0,78991.0,0.2994242]
[1743965680162,0.291,78992.0,78991.0,0.2994242]
[1743965680368,0.291,78992.0,78991.0,0.20509231]
[1743965680573,0.29,78992.0,78991.0,0.18655146]
[1743965680774,0.29,78992.0,78991.0,0.18635007]
[1743965680978,0.291,78992.0,78991.0,0.26222435]
[1743965681186,0.291,78992.0,78991.0,0.2767652]
[1743965681400,0.291,78992.0,78991.0,0.13932138]
[1743965681401,0.303659,78992.0,78991.0,0.13932138]
[1743965681580,0.61470973,78992.0,78991.0,0.03934948]
[1743965681815,0.265911,78974.0,78960.0,0.012664]
[1743965681988,0.253251,78973.0,78962.0,0.012664]
[1743965682192,0.12,78973.0,78971.0,0.0999719]
[1743965682551,0.12,78973.0,78972.0,0.265916]
[1743965682774,0.12,78973.0,78969.0,0.265925]
[1743965683095,0.12,78973.0,78972.0,0.02720285]
[1743965683338,0.12,78973.0,78972.0,0.15010582]
[1743965683540,0.00956073,78992.0,78991.0,0.012659]
[1743965683742,0.07956073,78992.0,78991.0,0.40329582]
[1743965683948,0.07,78992.0,78991.0,0.40329582]
[1743965684364,0.07956256,78992.0,78991.0,0.13744382]
[1743965684718,0.07956256,78992.0,78976.0,0.012662]
[1743965684719,0.01266,78988.0,78973.0,0.012662]
[1743965684922,0.1,78988.0,78987.0,0.0999719]
[1743965685415,0.11266,78988.0,78987.0,0.0999719]
[1743965685914,0.1,78988.0,78987.0,0.0999719]
[1743965686429,0.1,78988.0,78987.0,0.23741572]
[1743965686802,0.101,78988.0,78987.0,0.50828172]
[1743965687814,0.1,78988.0,78987.0,0.50328172]
[1743965688016,0.1,78988.0,78987.0,0.23741572]
[1743965688257,0.365863,78988.0,78987.0,0.0999719]
[1743965688406,0.1,78988.0,78987.0,0.0999719]
[1743965688611,0.1,78988.0,78987.0,0.25007572]
[1743965689176,0.1,78988.0,78987.0,0.30577161]
[1743965689392,0.1,78988.0,78987.0,0.24341572]
[1743965689595,0.11266,78988.0,78987.0,0.1059719]
[1743965689803,0.11266,78988.0,78987.0,0.0999719]
[1743965689964,0.1,78988.0,78987.0,0.25607572]
[1743965690141,0.1,78988.0,78987.0,0.22887487]
[1743965690390,0.1,78988.0,78987.0,0.25007572]
[1743965690795,0.1,78988.0,78987.0,0.25607572]
[1743965692378,0.1,78988.0,78987.0,0.25617572]
[1743965693112,0.1,78988.0,78987.0,0.24351572]
[1743965694544,0.1,78988.0,78987.0,0.25627572]
[1743965695776,0.1,78988.0,78987.0,0.59627572]
[1743965696026,0.012655,79016.0,79006.0,0.012657]
[1743965696158,0.212655,79016.0,79007.0,0.13744382]
[1743965696356,0.2,79016.0,79015.0,0.26765685]
[1743965696601,0.2,79016.0,79015.0,0.13744382]
[1743965697022,0.2,79016.0,79007.0,0.01454085]
[1743965697252,0.012656,79009.0,79008.0,0.12290297]
[1743965697404,0.012657,79007.0,79006.0,0.0064556]
[1743965697608,0.092657,79007.0,79006.0,0.0004556]
[1743965699261,0.08,79007.0,79006.0,0.13789942]
[1743965699392,0.08,79007.0,79006.0,0.19012665]
[1743965699591,0.08,79007.0,79006.0,0.18759531]
[1743965699817,0.08,79007.0,79006.0,0.0064556]
[1743965699818,0.092657,79007.0,79006.0,0.0064556]
[1743965701098,0.10193973,79007.0,79006.0,6e-07]
[1743965702585,0.265863,78988.0,78987.0,1e-06]
[1743965702808,0.515863,78988.0,78987.0,0.00013771]
[1743965703329,0.25,78988.0,78987.0,0.00013771]
[1743965703531,0.23266,78988.0,78987.0,0.02378301]
[1743965704156,0.23266,78988.0,78987.0,0.00013771]
[1743965704365,0.35556297,78988.0,78987.0,0.00013771]
[1743965704830,0.265879,78983.0,78982.0,0.0003342]
[1743965704964,0.535879,78983.0,78982.0,0.0003342]
[1743965706317,0.805879,78983.0,78982.0,0.0003342]
[1743965706516,0.535879,78983.0,78982.0,0.0003342]
[1743965706923,0.65978197,78983.0,78982.0,0.0033342]
[1743965707917,0.54625392,78983.0,78982.0,0.0033342]
[1743965708118,0.28366,78983.0,78982.0,0.0033342]
[1743965708420,0.271,78983.0,78982.0,0.0033342]
[1743965708628,0.271,78983.0,78982.0,0.15343902]
[1743965708980,0.271,78983.0,78982.0,0.17705722]
[1743965709185,0.271,78983.0,78982.0,0.51705722]
[1743965709402,0.000333,79019.0,79007.0,0.012657]
[1743965709612,0.29078868,79019.0,79018.0,0.012655]
[1743965709805,0.55654668,79019.0,79018.0,0.13744382]
[1743965709966,0.012656,79011.0,79009.0,0.03815905]
[1743965710171,0.265777,79014.0,79011.0,0.01454085]
[1743965710373,0.08,79014.0,79012.0,0.12290297]
[1743965710774,0.08,79014.0,79013.0,0.02719685]
[1743965711018,0.08,79014.0,79013.0,0.17371802]
[1743965711462,0.08,79014.0,79013.0,0.61368992]
[1743965711803,0.07645727,79014.0,79013.0,0.61368992]
[1743965712393,0.07170565,79014.0,79013.0,0.61368992]
[1743965712594,0.000334,79030.0,79029.0,0.605724]
[1743965712792,0.0504706,79030.0,79029.0,1.05998371]
[1743965712998,0.0504706,79030.0,79029.0,0.28711161]
[1743965713250,0.0631236,79030.0,79029.0,0.1235901]
[1743965713771,0.0631236,79030.0,79029.0,0.0999719]
[1743965713980,0.0504706,79030.0,79029.0,0.22287487]
[1743965714112,0.0631236,79030.0,79029.0,0.0999719]
[1743965714524,0.0504706,79030.0,79029.0,0.23741572]
[1743965714781,0.0504706,79030.0,79029.0,0.0999719]
[1743965714782,0.0631236,79030.0,79029.0,0.0999719]
[1743965715614,0.0631236,79030.0,79029.0,0.1059719]
[1743965716225,0.0631236,79030.0,79029.0,0.24341572]
[1743965716424,0.0631236,79030.0,79029.0,0.1059719]
[1743965717269,0.03964767,79030.0,79029.0,0.1059719]
[1743965717657,0.03964767,79030.0,79029.0,0.24351572]
[1743965717867,0.02699467,79030.0,79029.0,0.24351572]
[1743965718194,0.02679467,79030.0,79029.0,0.24351572]
[1743965718398,0.02679467,79030.0,79029.0,0.55893561]
[1743965718541,0.0001366,79030.0,79029.0,0.60803561]
[1743965718746,0.0003342,79035.0,79034.0,0.605707]
[1743965718946,0.0001673,79057.0,79042.0,0.36719185]
[1743965719155,0.0001673,79057.0,79042.0,0.63976261]
[1743965719361,0.0001673,79057.0,79056.0,0.605634]
[1743965719599,0.0901673,79057.0,79056.0,0.89274561]
[1743965719746,0.0903039,79057.0,79056.0,1.18264381]
[1743965719948,8e-05,79072.0,79069.0,0.012647]
[1743965720195,8e-05,79072.0,79069.0,0.52713971]
[1743965720196,0.0101672,79070.0,79069.0,0.52713971]
[1743965720537,0.0101672,79070.0,79069.0,0.66337681]
[1743965720739,0.0101672,79070.0,79069.0,0.63975861]
[1743965721129,0.0101672,79070.0,79069.0,0.66337681]
[1743965721455,0.10926314,79085.0,79084.0,0.265539]
[1743965721656,0.38939971,79085.0,79084.0,1.15881061]
[1743965722075,0.0001672,79094.0,79093.0,0.605509]
[1743965722289,0.0001672,79094.0,79093.0,0.91623881]
[1743965722491,0.0001672,79094.0,79093.0,0.65072981]
[1743965722739,0.0101672,79094.0,79093.0,0.62612081]
[1743965723183,0.0101672,79094.0,79093.0,0.63782674]
[1743965723617,0.0101672,79094.0,79093.0,0.63792674]
[1743965723817,0.0001672,79094.0,79093.0,0.63792674]
[1743965723940,0.0001672,79094.0,79093.0,0.66792674]
[1743965724354,0.0001672,79094.0,79093.0,0.67392674]
[1743965724553,0.0001672,79110.0,79093.0,0.67392674]
[1743965724554,0.0001672,79110.0,79099.0,0.270489]
[1743965724756,0.0001672,79110.0,79099.0,0.87290472]
[1743965725093,0.0001672,79110.0,79109.0,0.61999585]
[1743965725294,2e-07,79123.0,79122.0,0.61995285]
[1743965725493,0.01698448,79188.0,79122.0,0.61995285]
[1743965725494,0.0477,79182.0,79155.0,0.01454085]
[1743965725695,0.007631,79166.0,79157.0,0.01454085]
[1743965725893,0.012632,79158.0,79157.0,0.01454085]
[1743965726102,0.28,79158.0,79155.0,0.06423674]
[1743965726304,0.28,79158.0,79157.0,0.01454085]
[1743965726504,0.28,79158.0,79157.0,0.74526521]
[1743965726684,0.26631948,79158.0,79157.0,0.75467222]
[1743965726897,0.38,79182.0,79169.0,0.01454085]
[1743965726898,0.0001671,79174.0,79169.0,0.01454085]
[1743965727078,0.2601671,79174.0,79172.0,0.26715385]
[1743965727281,0.2601671,79174.0,79173.0,0.51322373]
[1743965727551,0.2601671,79174.0,79173.0,0.61319563]
[1743965727705,0.2601671,79174.0,79173.0,0.53293101]
[1743965727930,0.2601671,79174.0,79173.0,0.61319563]